[Event "FIDE WCCC Girls-10 2024"]
[Site "Montesilvano"]
[Date "2024.11.18"]
[Round "4.13"]
[White "Bakhshi, Rana"]
[Black "Milojevic, Dunja"]
[Result "1/2-1/2"]
[Annotator "NA RC"]
[ECO "E27"]
[WhiteElo "1727"]
[BlackElo "1610"]
[PlyCount "118"]
[EventDate "2024.11.18"]
[EventType "swiss"]
[EventCountry "ITA"]
[SourceTitle "playchess.com"]
[Source "ChessBase"]
[SourceQuality "1"]
[TimeControl "5400+30"]

1. d4 {[%emt 0:00:12]} Nf6 {[%emt 0:00:04]} 2. c4 {[%emt 0:00:22]} e6 {[%emt 0:00:05]} 3. Nc3 {[%emt 0:01:36]} Bb4 {[%emt 0:00:08]} 4. a3 {[%emt 0:01:07]} Bxc3+ {[%emt 0:00:30]} 5. bxc3 {[%emt 0:01:29]} O-O {[%emt 0:03:09]} 6. f3 {[%emt 0:01:46]} d5 {[%emt 0:01:24]} 7. cxd5 {[%emt 0:00:30]} exd5 {[%emt 0:00:19]} 8. e3 {[%emt 0:00:27]} Bf5 {[%emt 0:02:02]} 9. Ne2 {[%emt 0:05:07]} c6 {[%emt 0:01:58]} 10. Ng3 {[%emt 0:02:04]} Bg6 {[%emt 0:01:20]} 11. Bd3 {[%emt 0:01:29]} Nbd7 {[%emt 0:06:41]} 12. O-O {[%emt 0:02:35]} Re8 {[%emt 0:01:24]} 13. Re1 {[%emt 0:01:14]} c5 {[%emt 0:06:34]} 14. e4 {[%emt 0:02:56]} cxd4 {[%emt 0:04:23]} 15. cxd4 {[%emt 0:00:53]} Qb6 {[%emt 0:02:10]} 16. Bc2 {[%emt 0:01:06]} Rac8 {[%emt 0:04:49]} 17. Rb1 {[%emt 0:02:20]} Qc7 {[%emt 0:08:51]} 18. Rb2 {[%emt 0:04:02]} Nb6 {[%emt 0:06:09]} 19. Bb1 {[%emt 0:04:22]} Nh5 {[%emt 0:08:18]} 20. Nxh5 {[%emt 0:02:13]} Bxh5 {[%emt 0:00:05]} 21. g4 {[%emt 0:04:04]} Bg6 {[%emt 0:00:36]} 22. Qe2 {[%emt 0:01:57]} Qc3 {[%emt 0:05:44]} 23. Rb4 {[%emt 0:04:56]} Re6 {[%emt 0:08:50]} 24. Bb2 {[%emt 0:01:34]} Qc7 {[%emt 0:01:08]} 25. Rc1 {[%emt 0:01:35]} Qd7 {[%emt 0:02:20]} 26. Rxc8+ {[%emt 0:01:04]} Nxc8 {[%emt 0:00:37]} 27. Rb5 {[%emt 0:00:50]} a6 {[%emt 0:01:29]} 28. Rc5 {[%emt 0:00:58]} dxe4 {[%emt 0:01:13]} 29. fxe4 {[%emt 0:00:24]} Ne7 {[%emt 0:01:48]} 30. h4 {[%emt 0:01:57]} h6 {[%emt 0:00:44]} 31. h5 {[%emt 0:01:08]} Bh7 {[%emt 0:00:11]} 32. g5 {[%emt 0:00:48]} Kh8 {[%emt 0:02:02]} 33. Qg2 {[%emt 0:03:46]} Nc8 {[%emt 0:04:10]} 34. d5 {[%emt 0:00:26]} Re8 {[%emt 0:03:44]} 35. gxh6 {[%emt 0:00:32]} f6 {[%emt 0:13:01]} 36. Qg3 {[%emt 0:02:14]} Nd6 {[%emt 0:00:00]} 37. e5 {[%emt 0:10:44]} Bxb1 {[%emt 0:00:00]} 38. hxg7+ {[%emt 0:03:21]} Kg8 {[%emt 0:00:00]} 39. exd6 {[%emt 0:02:36]} Re4 {[%emt 0:00:00]} 40. Rc7 {[%emt 0:02:19]} Qe8 {[%emt 0:00:00]} 41. Re7 {[%emt 0:02:44]} Rxe7 {[%emt 0:00:00]} 42. dxe7 {[%emt 0:00:18]} Qxe7 {[%emt 0:00:00]} 43. d6 {[%emt 0:00:26]} Qd8 {[%emt 0:00:00]} 44. Qb3+ {[%emt 0:01:41]} Kxg7 {[%emt 0:00:00]} 45. Qxb7+ {[%emt 0:00:30]} Kh6 {[%emt 0:00:00]} 46. Bc1+ {[%emt 0:02:31]} Kxh5 {[%emt 0:00:22]} 47. Qxb1 {[%emt 0:11:48]} Qxd6 {[%emt 0:05:38]} 48. Qh7+ {[%emt 0:09:29]} Kg4 {[%emt 0:00:00]} 49. Qg8+ {[%emt 0:00:00]} Kf5 {[%emt 0:00:00]} 50. Qh7+ {[%emt 0:00:00]} Ke6 {[%emt 0:00:00]} 51. Qh3+ {[%emt 0:00:00]} Kf7 {[%emt 0:00:05]} 52. Qb3+ {[%emt 0:00:00]} Kg7 {[%emt 0:00:18]} 53. Qb7+ {[%emt 0:00:00]} Kg6 {[%emt 0:00:10]} 54. Qe4+ {[%emt 0:00:00]} Kf7 {[%emt 0:00:06]} 55. Qc4+ {[%emt 0:00:00]} Kg7 {[%emt 0:00:15]} 56. Qg4+ {[%emt 0:00:40]} Kf7 {[%emt 0:00:21]} 57. Qc4+ {[%emt 0:03:03]} Kg7 {[%emt 0:00:10]} 58. Qg4+ {[%emt 0:00:22]} Kf7 {[%emt 0:00:05]} 59. Qc4+ {[%emt 0:00:06]} Kg7 {[%emt 0:00:04]} 1/2-1/2

[Event "FIDE WCCC Girls-10 2024"]
[Site "Montesilvano"]
[Date "2024.11.18"]
[Round "4.14"]
[White "Bhavanya Panchumarthi"]
[Black "Xin, Lisa J."]
[Result "1-0"]
[Annotator "NA RC"]
[ECO "D13"]
[WhiteElo "1703"]
[BlackElo "1602"]
[PlyCount "75"]
[EventDate "2024.11.18"]
[EventType "swiss"]
[EventCountry "ITA"]
[SourceTitle "playchess.com"]
[Source "ChessBase"]
[SourceQuality "1"]
[TimeControl "5400+30"]

1. d4 {[%emt 0:00:06]} d5 {[%emt 0:00:08]} 2. c4 {[%emt 0:00:14]} c6 {[%emt 0:00:06]} 3. cxd5 {[%emt 0:00:13]} cxd5 {[%emt 0:00:10]} 4. Nc3 {[%emt 0:00:18]} Nc6 {[%emt 0:00:57]} 5. Nf3 {[%emt 0:00:32]} Nf6 {[%emt 0:00:11]} 6. Bf4 {[%emt 0:00:21]} Bf5 {[%emt 0:00:09]} 7. Rc1 {[%emt 0:05:02]} a6 {[%emt 0:00:51]} 8. Ne5 {[%emt 0:00:39]} Rc8 {[%emt 0:01:41]} 9. Qa4 {[%emt 0:00:58]} e6 {[%emt 0:05:45]} 10. e3 {[%emt 0:05:24]} Be7 {[%emt 0:04:38]} 11. Nxc6 {[%emt 0:05:47]} Rxc6 {[%emt 0:02:01]} 12. Bxa6 {[%emt 0:02:04]} O-O {[%emt 0:01:18]} 13. Bxb7 {[%emt 0:08:58]} Rb6 {[%emt 0:00:57]} 14. Bc6 {[%emt 0:02:39]} Rxb2 {[%emt 0:05:08]} 15. a3 {[%emt 0:05:35]} Bd3 {[%emt 0:06:16]} 16. Qa7 {[%emt 0:27:02]} Qc8 {[%emt 0:20:31]} 17. Bc7 {[%emt 0:15:28]} Ne8 {[%emt 0:14:39]} 18. Bxe8 {[%emt 0:10:20]} Rxe8 {[%emt 0:00:14]} 19. Rd1 {[%emt 0:01:23]} Bc2 {[%emt 0:20:31]} 20. Rd2 {[%emt 0:01:11]} Bxa3 {[%emt 0:09:48]} 21. Qxa3 {[%emt 0:00:41]} Rb3 {[%emt 0:00:11]} 22. Qa5 {[%emt 0:00:40]} Re7 {[%emt 0:01:08]} 23. Bd6 {[%emt 0:00:44]} Rd7 {[%emt 0:01:22]} 24. Bc5 {[%emt 0:00:31]} Be4 {[%emt 0:01:20]} 25. O-O {[%emt 0:00:42]} Rdb7 {[%emt 0:00:51]} 26. Nxe4 {[%emt 0:00:15]} dxe4 {[%emt 0:00:19]} 27. Ra2 {[%emt 0:00:48]} g6 {[%emt 0:00:24]} 28. h3 {[%emt 0:01:10]} R7b5 {[%emt 0:01:30]} 29. Qa8 {[%emt 0:00:16]} Rb8 {[%emt 0:00:07]} 30. Qxe4 {[%emt 0:00:12]} Qc7 {[%emt 0:00:35]} 31. Ra7 {[%emt 0:00:37]} Qc8 {[%emt 0:00:37]} 32. Bd6 {[%emt 0:01:03]} R8b7 {[%emt 0:00:53]} 33. Rfa1 {[%emt 0:01:17]} Rxa7 {[%emt 0:00:58]} 34. Rxa7 {[%emt 0:00:08]} Qc1+ {[%emt 0:00:06]} 35. Kh2 {[%emt 0:00:18]} Rb6 {[%emt 0:00:40]} 36. Ra8+ {[%emt 0:00:18]} Kg7 {[%emt 0:00:08]} 37. Bf8+ {[%emt 0:00:12]} Kf6 {[%emt 0:00:08]} 38. Qf4# {[%emt 0:00:10]} 1-0

[Event "FIDE WCCC Girls-10 2024"]
[Site "Montesilvano"]
[Date "2024.11.18"]
[Round "4.15"]
[White "Saltkhutsishvili, Sara"]
[Black "Meng, Miranda"]
[Result "1/2-1/2"]
[Annotator "NA RC"]
[ECO "B14"]
[WhiteElo "1546"]
[BlackElo "1675"]
[PlyCount "138"]
[EventDate "2024.11.18"]
[EventType "swiss"]
[EventCountry "ITA"]
[SourceTitle "playchess.com"]
[Source "ChessBase"]
[SourceQuality "1"]
[TimeControl "5400+30"]

1. e4 {[%emt 0:01:01]} c6 {[%emt 0:00:02]} 2. d4 {[%emt 0:00:19]} d5 {[%emt 0:00:03]} 3. exd5 {[%emt 0:00:33]} cxd5 {[%emt 0:00:06]} 4. c4 {[%emt 0:01:18]} Nf6 {[%emt 0:00:04]} 5. Nc3 {[%emt 0:02:13]} g6 {[%emt 0:00:16]} 6. cxd5 {[%emt 0:05:21]} Bg7 {[%emt 0:00:18]} 7. Bc4 {[%emt 0:02:00]} O-O {[%emt 0:00:18]} 8. Nge2 {[%emt 0:03:26]} Nbd7 {[%emt 0:02:34]} 9. O-O {[%emt 0:04:15]} Nb6 {[%emt 0:00:16]} 10. Bb3 {[%emt 0:03:36]} Nbxd5 {[%emt 0:01:03]} 11. Nxd5 {[%emt 0:06:19]} Nxd5 {[%emt 0:00:06]} 12. Nc3 {[%emt 0:01:44]} Nb6 {[%emt 0:05:59]} 13. Be3 {[%emt 0:09:00]} Bf5 {[%emt 0:04:07]} 14. Qd2 {[%emt 0:09:32]} Qd7 {[%emt 0:04:57]} 15. Rad1 {[%emt 0:07:39]} Rfd8 {[%emt 0:02:56]} 16. Rfe1 {[%emt 0:06:56]} Bg4 {[%emt 0:03:29]} 17. f3 {[%emt 0:05:32]} Be6 {[%emt 0:02:36]} 18. Bxe6 {[%emt 0:04:32]} Qxe6 {[%emt 0:01:04]} 19. b3 {[%emt 0:05:46]} Qc6 {[%emt 0:02:08]} 20. Ne4 {[%emt 0:03:26]} Rac8 {[%emt 0:07:52]} 21. Rc1 {[%emt 0:03:05]} Qd5 {[%emt 0:01:38]} 22. Rc5 {[%emt 0:01:10]} Qd7 {[%emt 0:07:26]} 23. Rxc8 {[%emt 0:02:19]} Rxc8 {[%emt 0:01:19]} 24. Nc5 {[%emt 0:00:35]} Qd5 {[%emt 0:00:45]} 25. Rd1 {[%emt 0:05:32]} e5 {[%emt 0:02:28]} 26. Ne4 {[%emt 0:01:58]} exd4 {[%emt 0:08:41]} 27. Bxd4 {[%emt 0:00:37]} Bxd4+ {[%emt 0:03:41]} 28. Qxd4 {[%emt 0:00:20]} Qxd4+ {[%emt 0:00:45]} 29. Rxd4 {[%emt 0:00:02]} Rc1+ {[%emt 0:00:36]} 30. Kf2 {[%emt 0:00:17]} Rc2+ {[%emt 0:00:54]} 31. Kg3 {[%emt 0:01:47]} Rxa2 {[%emt 0:01:16]} 32. Nc5 {[%emt 0:00:42]} Ra5 {[%emt 0:06:11]} 33. b4 {[%emt 0:01:19]} Ra2 {[%emt 0:03:23]} 34. Nxb7 {[%emt 0:00:29]} Rc2 {[%emt 0:01:47]} 35. Nd6 {[%emt 0:01:06]} Kg7 {[%emt 0:02:42]} 36. Re4 {[%emt 0:00:31]} Nd5 {[%emt 0:01:35]} 37. b5 {[%emt 0:00:43]} Rd2 {[%emt 0:03:28]} 38. Ra4 {[%emt 0:01:26]} Nb6 {[%emt 0:01:37]} 39. Ne8+ {[%emt 0:00:32]} Kf8 {[%emt 0:00:34]} 40. Re4 {[%emt 0:00:04]} Rd5 {[%emt 0:02:19]} 41. Nc7 {[%emt 0:00:46]} Rc5 {[%emt 0:01:44]} 42. Re8+ {[%emt 0:00:17]} Kg7 {[%emt 0:00:09]} 43. Na6 {[%emt 0:00:26]} Rxb5 {[%emt 0:00:21]} 44. Re7 {[%emt 0:00:15]} Nc8 {[%emt 0:00:48]} 45. Re8 {[%emt 0:00:52]} Ra5 {[%emt 0:00:59]} 46. Rxc8 {[%emt 0:00:32]} Rxa6 {[%emt 0:00:05]} 47. Ra8 {[%emt 0:00:04]} Ra1 {[%emt 0:00:26]} 48. Kh4 {[%emt 0:00:53]} a5 {[%emt 0:00:14]} 49. Ra7 {[%emt 0:00:15]} a4 {[%emt 0:00:24]} 50. Kg4 {[%emt 0:00:25]} Kf6 {[%emt 0:00:44]} 51. Ra5 {[%emt 0:00:36]} h6 {[%emt 0:00:34]} 52. g3 {[%emt 0:00:21]} Ke6 {[%emt 0:00:10]} 53. h3 {[%emt 0:00:28]} a3 {[%emt 0:00:16]} 54. Kf4 {[%emt 0:00:37]} a2 {[%emt 0:00:28]} 55. Kg4 {[%emt 0:00:28]} f5+ {[%emt 0:01:34]} 56. Kh4 {[%emt 0:00:15]} g5+ {[%emt 0:00:40]} 57. Kh5 {[%emt 0:00:13]} Kf6 {[%emt 0:02:45]} 58. Kxh6 {[%emt 0:00:52]} g4 {[%emt 0:00:58]} 59. fxg4 {[%emt 0:01:03]} fxg4 {[%emt 0:00:16]} 60. h4 {[%emt 0:00:12]} Rg1 {[%emt 0:01:42]} 61. Ra6+ {[%emt 0:00:23]} Kf5 {[%emt 0:00:14]} 62. Ra5+ {[%emt 0:00:25]} Ke4 {[%emt 0:00:30]} 63. Ra4+ {[%emt 0:00:14]} Kf3 {[%emt 0:00:20]} 64. Ra3+ {[%emt 0:00:08]} Kg2 {[%emt 0:00:37]} 65. Rxa2+ {[%emt 0:00:05]} Kxg3 {[%emt 0:00:23]} 66. Kg5 {[%emt 0:00:23]} Kh3 {[%emt 0:00:43]} 67. h5 {[%emt 0:00:24]} g3 {[%emt 0:02:55]} 68. h6 {[%emt 0:00:58]} Rb1 {[%emt 0:02:29]} 69. h7 {[%emt 0:00:19]} Rb8 {[%emt 0:00:21]} 1/2-1/2

[Event "FIDE WCCC Girls-10 2024"]
[Site "Montesilvano"]
[Date "2024.11.18"]
[Round "4.16"]
[White "Sobirova, Mumtozbegim"]
[Black "Constantin-Ciuntu, Anne-Sophie"]
[Result "0-1"]
[Annotator "NA RC"]
[ECO "B01"]
[WhiteElo "1476"]
[BlackElo "1672"]
[PlyCount "90"]
[EventDate "2024.11.18"]
[EventType "swiss"]
[EventCountry "ITA"]
[SourceTitle "playchess.com"]
[Source "ChessBase"]
[SourceQuality "1"]
[TimeControl "5400+30"]

1. e4 {[%emt 0:00:08]} d5 {[%emt 0:00:06]} 2. exd5 {[%emt 0:00:17]} Nf6 {[%emt 0:00:09]} 3. Nc3 {[%emt 0:00:19]} Nxd5 {[%emt 0:00:09]} 4. d4 {[%emt 0:00:29]} g6 {[%emt 0:00:38]} 5. Nf3 {[%emt 0:00:54]} Bg7 {[%emt 0:00:30]} 6. Bc4 {[%emt 0:00:45]} c6 {[%emt 0:01:11]} 7. O-O {[%emt 0:01:58]} O-O {[%emt 0:01:10]} 8. h3 {[%emt 0:00:54]} Bf5 {[%emt 0:02:17]} 9. a3 {[%emt 0:03:04]} Nxc3 {[%emt 0:03:16]} 10. bxc3 {[%emt 0:00:51]} Qc7 {[%emt 0:01:28]} 11. Be3 {[%emt 0:05:48]} Rd8 {[%emt 0:04:00]} 12. Qe2 {[%emt 0:02:03]} Nd7 {[%emt 0:03:17]} 13. Ng5 {[%emt 0:02:09]} Nf8 {[%emt 0:28:58]} 14. Nxf7 {[%emt 0:03:01]} Rdb8 {[%emt 0:06:22]} 15. Nh6+ {[%emt 0:05:17]} Kh8 {[%emt 0:00:18]} 16. Nf7+ {[%emt 0:04:51]} Kg8 {[%emt 0:00:45]} 17. Ng5+ {[%emt 0:00:47]} Kh8 {[%emt 0:00:49]} 18. Qf3 {[%emt 0:03:13]} Qa5 {[%emt 0:14:54]} 19. Bf4 {[%emt 0:04:55]} b5 {[%emt 0:09:15]} 20. Bb3 {[%emt 0:02:00]} Rc8 {[%emt 0:06:10]} 21. Nf7+ {[%emt 0:06:56]} Kg8 {[%emt 0:00:11]} 22. Nd6+ {[%emt 0:00:43]} Kh8 {[%emt 0:00:18]} 23. Nxc8 {[%emt 0:01:03]} Rxc8 {[%emt 0:00:17]} 24. Rfe1 {[%emt 0:00:46]} Bf6 {[%emt 0:00:44]} 25. Be5 {[%emt 0:01:22]} Qd8 {[%emt 0:00:40]} 26. Bxf6+ {[%emt 0:00:33]} exf6 {[%emt 0:00:16]} 27. Rad1 {[%emt 0:00:30]} Qd6 {[%emt 0:02:02]} 28. d5 {[%emt 0:01:55]} c5 {[%emt 0:01:24]} 29. c4 {[%emt 0:08:38]} bxc4 {[%emt 0:00:40]} 30. Bxc4 {[%emt 0:00:08]} Bxc2 {[%emt 0:00:23]} 31. Rd2 {[%emt 0:00:22]} Bf5 {[%emt 0:00:56]} 32. Rde2 {[%emt 0:00:46]} Bd7 {[%emt 0:00:55]} 33. Qc3 {[%emt 0:04:16]} g5 {[%emt 0:04:33]} 34. Re7 {[%emt 0:02:47]} Ng6 {[%emt 0:00:44]} 35. Rxd7 {[%emt 0:01:44]} Qxd7 {[%emt 0:00:28]} 36. Qxf6+ {[%emt 0:00:11]} Qg7 {[%emt 0:00:49]} 37. Qa6 {[%emt 0:03:10]} Rf8 {[%emt 0:01:11]} 38. d6 {[%emt 0:03:32]} Qd4 {[%emt 0:01:20]} 39. Rf1 {[%emt 0:00:43]} Ne5 {[%emt 0:01:23]} 40. Ba2 {[%emt 0:02:17]} Nd3 {[%emt 0:01:34]} 41. Bb1 {[%emt 0:04:24]} Nxf2 {[%emt 0:01:12]} 42. d7 {[%emt 0:01:56]} Nd3+ {[%emt 0:00:32]} 43. Kh2 {[%emt 0:00:29]} Qe5+ {[%emt 0:00:17]} 44. Kg1 {[%emt 0:00:34]} Rxf1+ {[%emt 0:00:08]} 45. Kxf1 {[%emt 0:00:18]} Qe1# {[%emt 0:00:07]} 0-1

[Event "FIDE WCCC Girls-10 2024"]
[Site "Montesilvano"]
[Date "2024.11.18"]
[Round "4.17"]
[White "Mohamed Ahmed, Ghidaa"]
[Black "Zhumambayeva Aliya"]
[Result "0-1"]
[Annotator "NA RC"]
[ECO "C54"]
[WhiteElo "1638"]
[BlackElo "1607"]
[PlyCount "150"]
[EventDate "2024.11.18"]
[EventType "swiss"]
[EventCountry "ITA"]
[SourceTitle "playchess.com"]
[Source "ChessBase"]
[SourceQuality "1"]
[TimeControl "5400+30"]

1. e4 {[%emt 0:00:03]} e5 {[%emt 0:00:04]} 2. Nf3 {[%emt 0:00:07]} Nc6 {[%emt 0:00:03]} 3. Bc4 {[%emt 0:00:07]} Bc5 {[%emt 0:00:04]} 4. d3 {[%emt 0:00:13]} d6 {[%emt 0:00:21]} 5. c3 {[%emt 0:01:20]} Nf6 {[%emt 0:00:17]} 6. Nbd2 {[%emt 0:00:47]} a6 {[%emt 0:00:10]} 7. a4 {[%emt 0:01:13]} Ba7 {[%emt 0:00:09]} 8. O-O {[%emt 0:01:31]} O-O {[%emt 0:00:08]} 9. b4 {[%emt 0:02:22]} Bg4 {[%emt 0:00:45]} 10. Re1 {[%emt 0:07:16]} Qe7 {[%emt 0:02:53]} 11. Nf1 {[%emt 0:00:42]} Bh5 {[%emt 0:04:28]} 12. Be3 {[%emt 0:01:26]} Rfe8 {[%emt 0:00:29]} 13. Bxa7 {[%emt 0:00:35]} Nxa7 {[%emt 0:00:05]} 14. Ng3 {[%emt 0:01:38]} Bg6 {[%emt 0:00:03]} 15. Qc2 {[%emt 0:07:43]} c6 {[%emt 0:01:57]} 16. Rad1 {[%emt 0:04:55]} Qc7 {[%emt 0:01:18]} 17. h3 {[%emt 0:08:45]} d5 {[%emt 0:01:14]} 18. Bb3 {[%emt 0:05:36]} Rad8 {[%emt 0:00:29]} 19. Qc1 {[%emt 0:04:39]} h6 {[%emt 0:03:44]} 20. c4 {[%emt 0:05:12]} dxe4 {[%emt 0:02:14]} 21. dxe4 {[%emt 0:03:01]} c5 {[%emt 0:01:42]} 22. Qe3 {[%emt 0:08:13]} b6 {[%emt 0:01:38]} 23. bxc5 {[%emt 0:05:22]} bxc5 {[%emt 0:00:06]} 24. Bc2 {[%emt 0:07:29]} Nc8 {[%emt 0:02:21]} 25. Rd3 {[%emt 0:06:12]} Rxd3 {[%emt 0:00:28]} 26. Bxd3 {[%emt 0:00:23]} Nd6 {[%emt 0:00:08]} 27. Nd2 {[%emt 0:04:02]} Qc6 {[%emt 0:02:04]} 28. Bc2 {[%emt 0:03:02]} Nd7 {[%emt 0:00:39]} 29. a5 {[%emt 0:02:13]} f6 {[%emt 0:00:39]} 30. f3 {[%emt 0:00:54]} Bf7 {[%emt 0:00:06]} 31. Qc3 {[%emt 0:00:40]} Rb8 {[%emt 0:00:41]} 32. Rb1 {[%emt 0:01:06]} Rxb1+ {[%emt 0:00:29]} 33. Bxb1 {[%emt 0:00:19]} Kf8 {[%emt 0:01:51]} 34. Bd3 {[%emt 0:03:03]} Nb7 {[%emt 0:05:23]} 35. Qa3 {[%emt 0:02:05]} Qc7 {[%emt 0:00:22]} 36. Nb3 {[%emt 0:00:49]} Qd6 {[%emt 0:01:32]} 37. Be2 {[%emt 0:00:30]} Be6 {[%emt 0:01:27]} 38. Qc1 {[%emt 0:01:01]} Nb8 {[%emt 0:00:31]} 39. Qa3 {[%emt 0:01:47]} Nc6 {[%emt 0:00:19]} 40. Kh2 {[%emt 0:00:33]} Nd4 {[%emt 0:01:06]} 41. Nxd4 {[%emt 0:00:43]} exd4 {[%emt 0:00:09]} 42. Qb3 {[%emt 0:01:00]} Nxa5 {[%emt 0:00:10]} 43. Qa4 {[%emt 0:00:19]} Qb6 {[%emt 0:00:34]} 44. Nh5 {[%emt 0:00:33]} Qb4 {[%emt 0:01:04]} 45. Qa2 {[%emt 0:00:49]} Qc3 {[%emt 0:00:43]} 46. Nf4 {[%emt 0:00:24]} Bf7 {[%emt 0:00:24]} 47. Qa4 {[%emt 0:00:25]} Be8 {[%emt 0:00:53]} 48. Qa2 {[%emt 0:00:19]} Bf7 {[%emt 0:10:54]} 49. Qa4 {[%emt 0:00:48]} Ke7 {[%emt 0:01:52]} 50. Bf1 {[%emt 0:00:41]} Qd2 {[%emt 0:00:20]} 51. Nd5+ {[%emt 0:00:22]} Bxd5 {[%emt 0:00:09]} 52. exd5 {[%emt 0:00:10]} Qf4+ {[%emt 0:02:40]} 53. Kg1 {[%emt 0:00:10]} Qc7 {[%emt 0:00:05]} 54. Bd3 {[%emt 0:00:24]} Nb7 {[%emt 0:16:05]} 55. Qxa6 {[%emt 0:00:20]} Nd6 {[%emt 0:00:03]} 56. Qa2 {[%emt 0:00:29]} Qb7 {[%emt 0:01:15]} 57. Qe2+ {[%emt 0:00:13]} Kf8 {[%emt 0:00:19]} 58. Qe6 {[%emt 0:01:06]} Qe7 {[%emt 0:00:04]} 59. Qxe7+ {[%emt 0:00:10]} Kxe7 {[%emt 0:00:04]} 60. Kf2 {[%emt 0:00:12]} Kd7 {[%emt 0:00:05]} 61. g4 {[%emt 0:00:44]} g5 {[%emt 0:00:40]} 62. Ke2 {[%emt 0:00:15]} Kc7 {[%emt 0:00:08]} 63. Kd2 {[%emt 0:00:22]} Nb7 {[%emt 0:00:04]} 64. Kc2 {[%emt 0:00:24]} Nd8 {[%emt 0:00:51]} 65. Bg6 {[%emt 0:01:04]} Nb7 {[%emt 0:03:39]} 66. Be4 {[%emt 0:01:23]} Nd6 {[%emt 0:00:40]} 67. Kd3 {[%emt 0:00:25]} Nf7 {[%emt 0:00:08]} 68. Kc2 {[%emt 0:00:31]} Ne5 {[%emt 0:00:04]} 69. Kb3 {[%emt 0:00:21]} Kd6 {[%emt 0:00:10]} 70. Ka4 {[%emt 0:00:55]} Nxc4 {[%emt 0:00:12]} 71. Kb5 {[%emt 0:00:17]} Ne3 {[%emt 0:00:10]} 72. Ka4 {[%emt 0:00:46]} Nxd5 {[%emt 0:00:07]} 73. Bd3 {[%emt 0:00:16]} Nf4 {[%emt 0:00:09]} 74. Bf1 {[%emt 0:00:05]} Kd5 {[%emt 0:00:13]} 75. Kb5 {[%emt 0:00:14]} d3 {[%emt 0:00:04]} 0-1

[Event "FIDE WCCC Girls-10 2024"]
[Site "Montesilvano"]
[Date "2024.11.18"]
[Round "4.18"]
[White "Li, Grace"]
[Black "Bayramova, Aya"]
[Result "0-1"]
[Annotator "NA RC"]
[ECO "B51"]
[WhiteElo "1529"]
[BlackElo "1634"]
[PlyCount "80"]
[EventDate "2024.11.18"]
[EventType "swiss"]
[EventCountry "ITA"]
[SourceTitle "playchess.com"]
[Source "ChessBase"]
[SourceQuality "1"]
[TimeControl "5400+30"]

1. e4 {[%emt 0:00:02]} c5 {[%emt 0:00:07]} 2. c3 {[%emt 0:00:06]} Nc6 {[%emt 0:00:45]} 3. Nf3 {[%emt 0:00:35]} d6 {[%emt 0:00:47]} 4. Bb5 {[%emt 0:01:04]} Bd7 {[%emt 0:02:01]} 5. O-O {[%emt 0:01:10]} Nf6 {[%emt 0:05:54]} 6. Re1 {[%emt 0:01:03]} g6 {[%emt 0:02:40]} 7. Bxc6 {[%emt 0:00:59]} Bxc6 {[%emt 0:00:09]} 8. d3 {[%emt 0:02:10]} Bg7 {[%emt 0:00:09]} 9. Bg5 {[%emt 0:01:22]} O-O {[%emt 0:06:33]} 10. Nbd2 {[%emt 0:01:08]} Rc8 {[%emt 0:06:24]} 11. Rc1 {[%emt 0:01:51]} b5 {[%emt 0:04:20]} 12. d4 {[%emt 0:01:07]} cxd4 {[%emt 0:01:00]} 13. cxd4 {[%emt 0:00:30]} Qb6 {[%emt 0:03:44]} 14. b4 {[%emt 0:04:13]} Rfe8 {[%emt 0:03:28]} 15. d5 {[%emt 0:03:49]} Bd7 {[%emt 0:04:38]} 16. Nb3 {[%emt 0:02:22]} Rc4 {[%emt 0:00:53]} 17. Rxc4 {[%emt 0:02:09]} bxc4 {[%emt 0:00:06]} 18. Nbd4 {[%emt 0:02:52]} Qxb4 {[%emt 0:00:53]} 19. Qc1 {[%emt 0:01:45]} Rc8 {[%emt 0:01:26]} 20. Re2 {[%emt 0:03:51]} c3 {[%emt 0:00:30]} 21. e5 {[%emt 0:05:08]} Nxd5 {[%emt 0:01:44]} 22. Nc2 {[%emt 0:02:31]} Qc4 {[%emt 0:01:10]} 23. Re1 {[%emt 0:01:30]} dxe5 {[%emt 0:01:07]} 24. Bh6 {[%emt 0:02:36]} f6 {[%emt 0:00:34]} 25. Bxg7 {[%emt 0:02:48]} Kxg7 {[%emt 0:00:01]} 26. Ne3 {[%emt 0:02:06]} Nxe3 {[%emt 0:00:24]} 27. Rxe3 {[%emt 0:00:22]} c2 {[%emt 0:00:14]} 28. Ne1 {[%emt 0:00:50]} Qxa2 {[%emt 0:00:07]} 29. Re2 {[%emt 0:00:57]} Qb1 {[%emt 0:00:23]} 30. Nd3 {[%emt 0:01:15]} Bb5 {[%emt 0:00:16]} 31. Re1 {[%emt 0:01:48]} Bxd3 {[%emt 0:00:07]} 32. f3 {[%emt 0:00:16]} Qb6+ {[%emt 0:00:42]} 33. Kh1 {[%emt 0:00:37]} Qf2 {[%emt 0:00:23]} 34. Rg1 {[%emt 0:00:38]} Rb8 {[%emt 0:00:28]} 35. Qe1 {[%emt 0:01:05]} Qxe1 {[%emt 0:00:08]} 36. Rxe1 {[%emt 0:00:17]} Rb1 {[%emt 0:00:00]} 37. h3 {[%emt 0:00:17]} Rxe1+ {[%emt 0:00:13]} 38. Kh2 {[%emt 0:00:27]} c1=Q {[%emt 0:00:12]} 39. Kg3 {[%emt 0:00:11]} Qf4+ {[%emt 0:00:14]} 40. Kf2 {[%emt 0:00:14]} Rf1# {[%emt 0:00:04]} 0-1